[Event "Karnataka State Open-ch 2018"]
[Site "Bengaluru"]
[Date "2018.04.15"]
[Round "4"]
[White "Gahan, M G"]
[Black "Sushrutha, Reddy"]
[Result "1-0"]
[ECO "C00"]
[WhiteElo "2281"]
[BlackElo "1583"]
[Annotator "ChessBase"]
[PlyCount "85"]
[EventDate "2018.??.??"]
[EventType "swiss"]
[EventCountry "IND"]
[SourceTitle "playchess.com"]
[Source "ChessBase"]
[SourceQuality "1"]
[TimeControl "5400+30"]

1. e4 {[%emt 0:00:10]} e6 {[%emt 0:11:50]} 2. b3 {[%emt 0:00:32]} d5 {[%emt 0:00:19]} 3. Bb2 {[%emt 0:00:05]} Nf6 {[%emt 0:00:28]} 4. e5 {[%emt 0:00:05]} Nfd7 {[%emt 0:00:24]} 5. c4 {[%emt 0:00:05]} c6 {[%emt 0:01:19]} 6. f4 {[%emt 0:00:29]} Nb6 {[%emt 0:00:28]} 7. Nf3 {[%emt 0:00:11]} c5 {[%emt 0:00:24]} 8. Nc3 {[%emt 0:04:16]} Nc6 {[%emt 0:00:51]} 9. d3 {[%emt 0:02:12]} Be7 {[%emt 0:00:46]} 10. g3 {[%emt 0:00:14]} f6 {[%emt 0:00:50]} 11. Bh3 {[%emt 0:05:16]} f5 {[%emt 0:01:03]} 12. O-O {[%emt 0:00:30]} O-O {[%emt 0:00:35]} 13. Kh1 {[%emt 0:01:59]} a6 {[%emt 0:04:29]} 14. Qd2 {[%emt 0:02:18]} d4 {[%emt 0:01:32]} 15. Nd1 {[%emt 0:00:12]} h5 {[%emt 0:01:00]} 16. Nf2 {[%emt 0:02:05]} Kh7 {[%emt 0:01:59]} 17. Qe2 {[%emt 0:01:14]} g6 {[%emt 0:01:02]} 18. Bg2 {[%emt 0:00:42]} Bd7 {[%emt 0:02:17]} 19. Nh3 {[%emt 0:01:09]} Kg7 {[%emt 0:01:52]} 20. Bc1 {[%emt 0:01:04]} Qc7 {[%emt 0:01:04]} 21. Bd2 {[%emt 0:00:09]} a5 {[%emt 0:00:39]} 22. a3 {[%emt 0:01:45]} Nc8 {[%emt 0:01:22]} 23. Nf2 {[%emt 0:01:21]} Nd8 {[%emt 0:00:40]} 24. b4 {[%emt 0:00:40]} axb4 {[%emt 0:00:12]} 25. axb4 {[%emt 0:00:07]} Rxa1 {[%emt 0:00:12]} 26. Rxa1 {[%emt 0:00:04]} b6 {[%emt 0:00:23]} 27. b5 {[%emt 0:03:17]} Nf7 {[%emt 0:00:32]} 28. Qd1 {[%emt 0:03:12]} Rh8 {[%emt 0:01:51]} 29. Kg1 {[%emt 0:00:22]} Nh6 {[%emt 0:00:57]} 30. h3 {[%emt 0:01:42]} Nf7 {[%emt 0:00:48]} 31. Qa4 {[%emt 0:07:52]} Nd8 {[%emt 0:01:08]} 32. Qa8 {[%emt 0:01:45]} Rf8 {[%emt 0:00:54]} 33. Nh2 {[%emt 0:00:50]} Rh8 {[%emt 0:00:22]} 34. Kf1 {[%emt 0:01:54]} Rf8 {[%emt 0:00:40]} 35. Qf3 {[%emt 0:00:16]} Rh8 {[%emt 0:00:35]} 36. Nd1 {[%emt 0:02:07]} Kf7 {[%emt 0:00:47]} 37. Nb2 {[%emt 0:00:15]} Kg7 {[%emt 0:01:32]} 38. Ra6 {[%emt 0:00:30]} Rf8 {[%emt 0:01:48]} 39. Na4 {[%emt 0:01:37]} Rf7 {[%emt 0:00:35]} 40. Nxb6 {[%emt 0:01:42]} Nxb6 {[%emt 0:00:53]} 41. Ba5 {[%emt 0:00:06]} Nxc4 {[%emt 0:00:19]} 42. dxc4 {[%emt 0:00:27]} Qc8 {[%emt 0:02:19]} 43. Ra8 1-0

[Event "Karnataka State Open-ch 2018"]
[Site "Bengaluru"]
[Date "2018.04.15"]
[Round "4"]
[White "Arvind, Shastry"]
[Black "Chaithanya Ganesh"]
[Result "1-0"]
[ECO "D37"]
[WhiteElo "2175"]
[BlackElo "1498"]
[Annotator "ChessBase"]
[PlyCount "147"]
[EventDate "2018.??.??"]
[EventType "swiss"]
[EventCountry "IND"]
[SourceTitle "playchess.com"]
[Source "ChessBase"]
[SourceQuality "1"]
[TimeControl "5400+30"]

1. d4 {[%emt 0:03:52]} d5 {[%emt 0:00:09]} 2. Nf3 {[%emt 0:00:05]} Nf6 {[%emt 0:00:02]} 3. c4 {[%emt 0:00:09]} e6 {[%emt 0:01:09]} 4. Nc3 {[%emt 0:00:09]} Be7 {[%emt 0:00:08]} 5. Bf4 {[%emt 0:00:08]} O-O {[%emt 0:00:44]} 6. e3 {[%emt 0:00:02]} c5 {[%emt 0:00:59]} 7. dxc5 {[%emt 0:00:05]} Bxc5 {[%emt 0:00:42]} 8. cxd5 {[%emt 0:00:05]} Nxd5 {[%emt 0:02:53]} 9. Nxd5 {[%emt 0:00:04]} Qxd5 {[%emt 0:04:17]} 10. Qxd5 {[%emt 0:01:36]} exd5 {[%emt 0:02:15]} 11. a3 {[%emt 0:00:04]} Nc6 {[%emt 0:01:24]} 12. Bb5 {[%emt 0:00:36]} Bb6 {[%emt 0:00:27]} 13. O-O {[%emt 0:01:03]} Be6 {[%emt 0:04:51]} 14. Ne5 {[%emt 0:04:14]} Nxe5 {[%emt 0:08:44]} 15. Bxe5 {[%emt 0:00:48]} f6 {[%emt 0:00:10]} 16. Bc3 {[%emt 0:00:53]} a6 {[%emt 0:02:02]} 17. Be2 {[%emt 0:01:00]} Rfd8 {[%emt 0:00:45]} 18. Rfd1 {[%emt 0:00:14]} Rd7 {[%emt 0:01:00]} 19. Rd2 {[%emt 0:00:41]} Rad8 {[%emt 0:00:09]} 20. Rad1 {[%emt 0:00:08]} Kf7 {[%emt 0:01:02]} 21. Bf3 {[%emt 0:00:45]} Ke7 {[%emt 0:00:56]} 22. h3 {[%emt 0:00:40]} Ke8 {[%emt 0:10:59]} 23. Bd4 {[%emt 0:02:48]} Bxd4 {[%emt 0:03:45]} 24. Rxd4 {[%emt 0:04:15]} g6 {[%emt 0:01:04]} 25. Kf1 {[%emt 0:00:44]} Ke7 {[%emt 0:00:33]} 26. Ke1 {[%emt 0:01:31]} Rd6 {[%emt 0:02:24]} 27. Rc1 {[%emt 0:05:26]} R6d7 {[%emt 0:02:20]} 28. Kd2 {[%emt 0:02:21]} Rd6 {[%emt 0:12:20]} 29. b4 {[%emt 0:01:51]} R8d7 {[%emt 0:01:47]} 30. Bd1 {[%emt 0:04:19]} b5 {[%emt 0:02:25]} 31. Rc5 {[%emt 0:00:42]} Kd8 {[%emt 0:01:12]} 32. Bb3 {[%emt 0:00:54]} Ke7 {[%emt 0:00:39]} 33. Kc3 {[%emt 0:01:13]} Rd8 {[%emt 0:00:14]} 34. Bc2 {[%emt 0:01:17]} f5 {[%emt 0:02:10]} 35. Rd1 {[%emt 0:01:57]} R8d7 {[%emt 0:01:55]} 36. Kd4 {[%emt 0:01:06]} Bf7 {[%emt 0:00:55]} 37. Bb3 {[%emt 0:00:46]} Rd8 {[%emt 0:03:11]} 38. Rc7+ {[%emt 0:01:04]} R8d7 {[%emt 0:01:06]} 39. Rdc1 {[%emt 0:00:12]} Kd8 {[%emt 0:01:22]} 40. Rxd7+ {[%emt 0:00:10]} Kxd7 {[%emt 0:00:23]} 41. Rc5 {[%emt 0:00:06]} Rc6 {[%emt 0:01:46]} 42. Bxd5 {[%emt 0:00:35]} Bxd5 {[%emt 0:00:31]} 43. Rxd5+ {[%emt 0:01:09]} Ke7 {[%emt 0:00:14]} 44. Rc5 {[%emt 0:00:28]} Rd6+ {[%emt 0:00:17]} 45. Kc3 {[%emt 0:00:22]} Kd7 {[%emt 0:00:10]} 46. Kc2 {[%emt 0:00:06]} h5 {[%emt 0:00:51]} 47. Rc3 {[%emt 0:00:33]} Ke7 {[%emt 0:00:24]} 48. h4 {[%emt 0:00:44]} Kf7 {[%emt 0:00:43]} 49. Rd3 {[%emt 0:00:14]} Rc6+ {[%emt 0:00:07]} 50. Kd2 {[%emt 0:00:08]} Ke7 {[%emt 0:00:06]} 51. Rc3 {[%emt 0:00:11]} Rd6+ {[%emt 0:00:15]} 52. Ke2 {[%emt 0:00:07]} Kf7 {[%emt 0:00:50]} 53. g3 {[%emt 0:00:49]} Ke7 {[%emt 0:00:13]} 54. Kf3 {[%emt 0:00:16]} Re6 {[%emt 0:00:37]} 55. Rc5 {[%emt 0:00:45]} Kf6 {[%emt 0:00:56]} 56. Rc8 {[%emt 0:00:33]} Rd6 {[%emt 0:02:20]} 57. Kf4 {[%emt 0:01:00]} Re6 {[%emt 0:00:26]} 58. f3 {[%emt 0:00:20]} Rd6 {[%emt 0:00:59]} 59. Rc7 {[%emt 0:00:38]} Rb6 {[%emt 0:00:42]} 60. e4 {[%emt 0:00:21]} fxe4 {[%emt 0:01:26]} 61. fxe4 {[%emt 0:00:04]} Ke6 {[%emt 0:00:44]} 62. e5 {[%emt 0:01:24]} Kd5 {[%emt 0:01:10]} 63. Rd7+ {[%emt 0:01:14]} Ke6 {[%emt 0:00:13]} 64. Rd6+ {[%emt 0:00:32]} Rxd6 {[%emt 0:00:33]} 65. exd6 {[%emt 0:00:01]} Kxd6 {[%emt 0:00:05]} 66. Kg5 {[%emt 0:00:06]} Kd5 {[%emt 0:00:11]} 67. Kxg6 {[%emt 0:00:03]} Kc4 {[%emt 0:00:04]} 68. Kxh5 {[%emt 0:00:08]} Kb3 {[%emt 0:00:01]} 69. g4 {[%emt 0:00:04]} Kxa3 {[%emt 0:00:06]} 70. g5 {[%emt 0:00:05]} Kxb4 {[%emt 0:00:04]} 71. g6 {[%emt 0:00:03]} Ka3 {[%emt 0:00:16]} 72. g7 {[%emt 0:00:05]} b4 {[%emt 0:00:14]} 73. g8=Q {[%emt 0:00:08]} b3 {[%emt 0:00:03]} 74. Qa8 {[%emt 0:00:45]} 1-0

[Event "Karnataka State Open-ch 2018"]
[Site "Bengaluru"]
[Date "2018.04.15"]
[Round "4"]
[White "Balkishan, A."]
[Black "Saket, Kumar"]
[Result "1-0"]
[ECO "D27"]
[WhiteElo "2026"]
[BlackElo "1491"]
[Annotator "NA"]
[PlyCount "70"]
[EventDate "2018.??.??"]
[EventType "swiss"]
[EventCountry "IND"]
[SourceTitle "playchess.com"]
[Source "ChessBase"]
[SourceQuality "1"]
[TimeControl "5400+30"]

1. d4 {[%emt 0:09:51]} d5 {[%emt 0:00:01]} 2. c4 {[%emt 0:00:11]} dxc4 {[%emt 0:00:01]} 3. e3 {[%emt 0:00:30]} e6 {[%emt 0:00:10]} 4. Bxc4 {[%emt 0:00:15]} c5 {[%emt 0:00:03]} 5. Nf3 {[%emt 0:00:19]} Nf6 {[%emt 0:00:02]} 6. O-O {[%emt 0:00:24]} a6 {[%emt 0:00:02]} 7. a4 {[%emt 0:00:41]} Nc6 {[%emt 0:00:15]} 8. Nc3 {[%emt 0:00:17]} cxd4 {[%emt 0:00:35]} 9. exd4 {[%emt 0:00:10]} Be7 {[%emt 0:00:12]} 10. Bf4 {[%emt 0:01:16]} O-O {[%emt 0:00:34]} 11. Re1 {[%emt 0:02:15]} Nb4 {[%emt 0:00:24]} 12. Qe2 {[%emt 0:01:50] D26: Queen's Gambit Accepted: 4 e3 e6 5 Bxc5 c5 sidelines} (12. Rc1 b6 13. Ne5 Bb7 14. Nxf7 Rxf7 15. Bxe6 Kf8 16. Be5 Bd6 17. Bxf7 Kxf7 18. Qb3+ Kf8 19. Bxd6+ Qxd6 {1-0 (44) Bacrot,E (2722)-Tan,J (2466) chess.com INT 2018}) 12... Nbd5 {[%emt 0:01:40]} 13. Be5 {[%emt 0:00:19]} b6 $146 {[%emt 0:01:53]} ({Find the theoretical novelty and annotate with similar games:} 13... Nxc3 14. bxc3 Bd7 15. Bd3 h6 16. Nh4 Bc6 17. Bc2 g6 18. Qd3 Ne4 19. Nxg6 fxg6 {0-1 (37) Taboada,F-Poch,A Santa Fe 2004}) 14. Rac1 {[%emt 0:02:10]} Bb7 {[%emt 0:00:30]} 15. Bd3 {[%emt 0:00:02]} Qd7 {[%emt 0:09:13]} 16. Ng5 {[%emt 0:07:22]} h6 {[%emt 0:04:08]} 17. Nge4 {[%emt 0:04:36]} Nxe4 {[%emt 0:00:44]} 18. Qxe4 {[%emt 0:04:09]} Nf6 {[%emt 0:03:37]} 19. Qe2 {[%emt 0:00:58]} Rfc8 {[%emt 0:04:36]} 20. Bb1 {[%emt 0:01:27]} Nd5 {[%emt 0:01:45]} 21. Qg4 {[%emt 0:04:05]} Bf8 {[%emt 0:02:47]} 22. Qe4 {[%emt 0:03:28]} f5 {[%emt 0:01:22]} 23. Qe2 {[%emt 0:00:21]} Bb4 {[%emt 0:05:30]} 24. Qd3 {[%emt 0:02:10]} Nxc3 {[%emt 0:03:26]} 25. bxc3 {[%emt 0:00:24]} Ba3 {[%emt 0:04:44]} 26. Rcd1 {[%emt 0:00:09]} Qxa4 {[%emt 0:00:52]} 27. Ba2 {[%emt 0:01:16]} Qc6 {[%emt 0:00:35]} 28. Qg3 {[%emt 0:02:52]} Bf8 {[%emt 0:02:54]} 29. d5 $2 {[%emt 0:02:45]} (29. Qg6 $18 Re8 30. Rd3) 29... exd5 {[%emt 0:02:41]} 30. Bxd5+ {[%emt 0:00:32]} Qxd5 {[%emt 0:00:10]} 31. Rxd5 {[%emt 0:00:04]} Bxd5 {[%emt 0:00:08]} 32. Qg6 {[%emt 0:00:44]} b5 {[%emt 0:03:54]} 33. Re3 {[%emt 0:01:42]} b4 $2 {[%emt 0:00:34] [#]} (33... f4 $11 34. Bxf4 Bf7) 34. Bxg7 $1 {[%emt 0:00:26]} Bxg7 {[%emt 0:02:14]} 35. Re7 {[%emt 0:00:12] Bf8 Re3+} Rc6 1-0

[Event "Karnataka State Open-ch 2018"]
[Site "Bengaluru"]
[Date "2018.04.15"]
[Round "4"]
[White "Gavi, Siddayya"]
[Black "Sudhanva, Shabaraya"]
[Result "1-0"]
[ECO "B07"]
[WhiteElo "1993"]
[BlackElo "1346"]
[Annotator "NA"]
[PlyCount "89"]
[EventDate "2018.??.??"]
[EventType "swiss"]
[EventCountry "IND"]
[SourceTitle "playchess.com"]
[Source "ChessBase"]
[SourceQuality "1"]
[TimeControl "5400+30"]

1. e4 {[%emt 0:00:00]} d6 {[%emt 0:00:11]} 2. d4 {[%emt 0:00:00]} Nf6 {[%emt 0:00:10]} 3. Nc3 {[%emt 0:00:00]} g6 {[%emt 0:00:11]} 4. Be3 {[%emt 0:00:49]} Bg7 {[%emt 0:00:14]} 5. Qd2 {[%emt 0:00:10]} Nc6 {[%emt 0:05:56]} 6. f3 {[%emt 0:00:43]} e5 {[%emt 0:01:18]} 7. Nge2 {[%emt 0:00:32]} Nd7 {[%emt 0:06:25]} 8. d5 {[%emt 0:02:07]} Ne7 {[%emt 0:00:46]} 9. h4 {[%emt 0:00:59]} f5 {[%emt 0:02:54]} 10. h5 {[%emt 0:00:24]} f4 {[%emt 0:00:27]} 11. Bf2 {[%emt 0:00:46]} g5 {[%emt 0:00:25]} 12. g4 {[%emt 0:00:35]} h6 {[%emt 0:00:36]} 13. Nc1 {[%emt 0:00:40]} a6 {[%emt 0:04:43]} 14. Be2 {[%emt 0:04:31]} Nb6 {[%emt 0:03:40]} 15. a4 {[%emt 0:00:46]} Bd7 {[%emt 0:02:41]} 16. Nb3 {[%emt 0:01:22]} Nbc8 {[%emt 0:03:45]} 17. Na5 {[%emt 0:02:52]} Rb8 {[%emt 0:02:02]} 18. b4 {[%emt 0:00:21]} b6 {[%emt 0:02:40]} 19. Nb3 {[%emt 0:02:11]} Ra8 {[%emt 0:00:30]} 20. O-O {[%emt 0:01:46]} Ng8 {[%emt 0:00:59]} 21. Bc4 {[%emt 0:00:55]} Nce7 {[%emt 0:01:07]} 22. Bd3 {[%emt 0:02:22]} Bc8 {[%emt 0:00:36]} 23. Nd1 {[%emt 0:00:41]} Nf6 {[%emt 0:00:28]} 24. Be1 {[%emt 0:00:18]} Bb7 {[%emt 0:00:38]} 25. Nf2 {[%emt 0:00:24]} Nd7 {[%emt 0:00:42]} 26. c4 {[%emt 0:00:14]} O-O {[%emt 0:01:41]} 27. Be2 {[%emt 0:02:16]} Kh8 {[%emt 0:01:01]} 28. Qd3 {[%emt 0:00:34]} Re8 {[%emt 0:01:03]} 29. Bd2 {[%emt 0:00:42]} Kg8 {[%emt 0:00:16]} 30. Rfd1 {[%emt 0:00:11]} Rc8 {[%emt 0:02:33]} 31. Rac1 {[%emt 0:00:30]} Bf8 {[%emt 0:01:20]} 32. c5 {[%emt 0:02:42]} dxc5 {[%emt 0:02:29]} 33. bxc5 {[%emt 0:00:14]} Nxc5 {[%emt 0:01:10]} 34. Nxc5 {[%emt 0:00:21]} bxc5 {[%emt 0:01:38]} 35. Qb3 {[%emt 0:00:29]} Rb8 {[%emt 0:03:31]} 36. d6+ {[%emt 0:00:56]} Bd5 {[%emt 0:00:38]} 37. Qc3 {[%emt 0:03:06]} Qxd6 {[%emt 0:08:45]} 38. exd5 {[%emt 0:00:46]} Nxd5 {[%emt 0:00:17]} 39. Bc4 {[%emt 0:01:02]} Bg7 {[%emt 0:00:48]} 40. Ne4 {[%emt 0:00:20]} Qc6 {[%emt 0:01:16]} 41. Be1 {[%emt 0:00:41]} Rbd8 {[%emt 0:00:40]} 42. Rxd5 {[%emt 0:00:10]} Rxd5 {[%emt 0:00:50]} 43. Rd1 {[%emt 0:00:07]} Red8 {[%emt 0:00:43]} 44. Rxd5 {[%emt 0:00:08]} Rxd5 {[%emt 0:00:32]} 45. Qd3 {[%emt 0:00:10]} 1-0

[Event "Karnataka State Open-ch 2018"]
[Site "Bengaluru"]
[Date "2018.04.15"]
[Round "4"]
[White "Likhit, Chilukuri"]
[Black "Shriya R Revankar"]
[Result "1-0"]
[ECO "B24"]
[WhiteElo "1988"]
[BlackElo "1472"]
[Annotator "NA RC"]
[PlyCount "117"]
[EventDate "2018.??.??"]
[EventType "swiss"]
[EventCountry "IND"]
[SourceTitle "playchess.com"]
[Source "ChessBase"]
[SourceQuality "1"]
[TimeControl "5400+30"]

1. e4 {[%emt 0:00:00]} c5 {[%emt 0:00:33]} 2. Nc3 {[%emt 0:00:00]} Nc6 {[%emt 0:00:04]} 3. Bb5 {[%emt 0:00:00]} Nd4 {[%emt 0:00:04]} 4. Bc4 {[%emt 0:00:00]} e6 {[%emt 0:00:03]} 5. Nge2 {[%emt 0:00:00]} a6 {[%emt 0:02:42] B23: Closed Sicilian: Lines without g3} 6. a3 {[%emt 0:00:02]} Nf6 {[%emt 0:01:24]} 7. O-O {[%emt 0:00:23]} d5 {[%emt 0:01:17]} 8. exd5 {[%emt 0:00:07]} exd5 {[%emt 0:00:05]} 9. Ba2 {[%emt 0:01:14]} Be7 {[%emt 0:07:05]} 10. d3 {[%emt 0:01:22]} Nxe2+ {[%emt 0:00:34]} 11. Qxe2 {[%emt 0:00:09]} O-O $146 {[%emt 0:00:07]} ({Find the theoretical novelty and annotate with similar games:} 11... Be6 12. f4 g6 13. Qf3 h5 {0-1 (69) Pirs,M (2550)-Giuliani,S (2635) ICCF email 2012}) 12. Bg5 {[%emt 0:00:06]} Be6 {[%emt 0:03:53]} 13. h3 {[%emt 0:01:34]} Re8 {[%emt 0:05:48]} 14. Rfe1 {[%emt 0:04:25]} b5 {[%emt 0:04:29]} 15. Qf3 {[%emt 0:01:50]} Rc8 {[%emt 0:03:44]} 16. Rad1 {[%emt 0:12:48]} Kh8 {[%emt 0:04:32]} 17. Ne2 {[%emt 0:05:13]} Ng8 {[%emt 0:02:43]} 18. Bxe7 {[%emt 0:01:12]} Nxe7 {[%emt 0:00:33]} 19. Nf4 {[%emt 0:00:07]} Qd7 {[%emt 0:00:40]} 20. Nxe6 {[%emt 0:07:16]} fxe6 {[%emt 0:00:05]} 21. Qf7 {[%emt 0:00:04]} Rc6 {[%emt 0:06:41]} 22. Re3 {[%emt 0:00:05]} Qc8 {[%emt 0:00:37]} 23. Rde1 {[%emt 0:00:07]} Ng8 {[%emt 0:06:14]} 24. Qf4 {[%emt 0:03:35]} Rf8 {[%emt 0:03:21]} 25. Qg4 {[%emt 0:03:00]} Nh6 {[%emt 0:01:49]} ({Black should play} 25... Nf6 $14 26. Qe2 Re8) 26. Qd1 {[%emt 0:02:43]} Nf5 {[%emt 0:01:04]} 27. Re5 {[%emt 0:00:06]} c4 {[%emt 0:02:20]} 28. c3 {[%emt 0:00:52]} Rf6 {[%emt 0:02:27]} 29. Bb1 {[%emt 0:04:48]} Nh6 {[%emt 0:02:18]} 30. Qe2 {[%emt 0:00:38]} g6 {[%emt 0:02:38]} 31. d4 {[%emt 0:02:04]} Nf7 {[%emt 0:01:38]} 32. Re3 {[%emt 0:00:18]} Qd7 {[%emt 0:00:55]} 33. Qg4 {[%emt 0:00:22]} Kg7 {[%emt 0:01:53]} 34. h4 {[%emt 0:03:08]} h6 {[%emt 0:10:32] [#]} 35. Rg3 $1 {[%emt 0:06:10]} Nh8 {[%emt 0:01:32]} 36. h5 {[%emt 0:06:27]} g5 {[%emt 0:00:50]} 37. Rge3 {[%emt 0:05:03]} (37. f4 $18 Nf7 38. Rf3 (38. fxg5 Nxg5 39. Re5 Qf7 $14)) 37... Qf7 {[%emt 0:01:55]} 38. Qe2 {[%emt 0:00:24]} Kf8 {[%emt 0:01:43]} 39. Bc2 {[%emt 0:00:51]} Qd7 {[%emt 0:03:51]} 40. Bd1 {[%emt 0:03:15]} a5 {[%emt 0:01:38]} 41. Qc2 {[%emt 0:00:41]} a4 {[%emt 0:02:54]} 42. Bg4 {[%emt 0:00:11]} Kg7 $2 {[%emt 0:02:19]} (42... Nf7 {might work better.} 43. Qh7 Qe8) 43. Kf1 $2 {[%emt 0:07:13]} (43. Qe2 $18) 43... Nf7 {[%emt 0:02:08] [#]} 44. Rf3 $1 {[%emt 0:00:19]} Qe7 {[%emt 0:01:44]} 45. Ree3 {[%emt 0:05:21]} Nh8 $2 {[%emt 0:00:21]} (45... Kg8 46. Re1 (46. Rxf6 Qxf6 47. Kg1 Nd8 $16) 46... Nd8) 46. Rxf6 {[%emt 0:01:58]} Qxf6 {[%emt 0:00:03]} 47. Rf3 {[%emt 0:00:08]} Qe7 {[%emt 0:00:05]} 48. Qe2 {[%emt 0:00:08]} Nf7 {[%emt 0:01:14]} 49. Bf5 {[%emt 0:00:41]} Qd6 {[%emt 0:03:33]} 50. Bg6 {[%emt 0:00:47]} Rc7 {[%emt 0:00:03]} (50... Nh8 {was called for.}) 51. Bxf7 {[%emt 0:01:40]} Rxf7 {[%emt 0:00:03]} 52. Qc2 {[%emt 0:00:06]} Rxf3 $2 {[%emt 0:01:43]} (52... e5 53. dxe5 Qe6) 53. Qg6+ {[%emt 0:00:07]} Kf8 {[%emt 0:00:10]} 54. Qxh6+ {[%emt 0:00:07]} Ke7 {[%emt 0:00:07]} 55. gxf3 {[%emt 0:00:23]} Qf4 {[%emt 0:00:40]} 56. Kg2 {[%emt 0:00:56]} (56. Qg7+ $142 Qf7 57. Qxg5+ Ke8 58. Kg2) 56... Qh4 $2 {[%emt 0:01:18]} (56... Qf6 57. Qh7+ Ke8) 57. Qg7+ {[%emt 0:00:50]} Kd6 {[%emt 0:00:05]} 58. h6 {[%emt 0:00:20]} g4 {[%emt 0:00:03]} 59. fxg4 {[%emt 0:00:13]} 1-0

[Event "Karnataka State Open-ch 2018"]
[Site "Bengaluru"]
[Date "2018.04.15"]
[Round "4"]
[White "Manjunath, J."]
[Black "Mitul, K H"]
[Result "1-0"]
[ECO "C70"]
[WhiteElo "1986"]
[BlackElo "1341"]
[Annotator "NA"]
[PlyCount "209"]
[EventDate "2018.??.??"]
[EventType "swiss"]
[EventCountry "IND"]
[SourceTitle "playchess.com"]
[Source "ChessBase"]
[SourceQuality "1"]
[TimeControl "5400+30"]

1. e4 {[%emt 0:00:00]} e5 {[%emt 0:00:05]} 2. Nf3 {[%emt 0:00:00]} Nc6 {[%emt 0:00:07]} 3. Bb5 {[%emt 0:00:15]} a6 {[%emt 0:00:07]} 4. Ba4 {[%emt 0:00:10]} b5 {[%emt 0:00:07]} 5. Bb3 {[%emt 0:00:06]} Bc5 {[%emt 0:00:08]} 6. d3 {[%emt 0:00:43]} h6 {[%emt 0:00:29]} 7. c3 {[%emt 0:01:02]} d6 {[%emt 0:00:15]} 8. h3 {[%emt 0:00:40]} Nf6 {[%emt 0:00:16]} 9. Nbd2 {[%emt 0:00:17]} O-O {[%emt 0:00:27]} 10. Nf1 {[%emt 0:00:19]} a5 {[%emt 0:01:33]} 11. Ng3 {[%emt 0:00:26]} a4 {[%emt 0:00:20]} 12. Bc2 {[%emt 0:01:07]} d5 {[%emt 0:01:23]} 13. Qe2 {[%emt 0:01:55]} d4 {[%emt 0:07:25]} 14. a3 {[%emt 0:02:21]} Be6 {[%emt 0:01:02]} 15. Nh4 {[%emt 0:02:04]} Ne7 {[%emt 0:00:47]} 16. Nh5 {[%emt 0:04:49]} Ng6 {[%emt 0:01:48]} 17. Nf5 {[%emt 0:01:49]} Bxf5 {[%emt 0:11:25]} 18. exf5 {[%emt 0:00:22]} Nh8 {[%emt 0:00:53]} 19. O-O {[%emt 0:05:36]} Re8 {[%emt 0:15:16]} 20. Ng3 Qd5 21. Re1 {[%emt 0:13:17]} Re7 {[%emt 0:10:29]} 22. Bd2 {[%emt 0:08:37]} Rae8 {[%emt 0:00:41]} 23. Ne4 {[%emt 0:04:24]} Nxe4 {[%emt 0:01:01]} 24. dxe4 {[%emt 0:00:32]} Qc6 {[%emt 0:00:45]} 25. Bd3 {[%emt 0:00:28]} Rb8 {[%emt 0:00:21]} 26. Rac1 {[%emt 0:01:02]} Qb6 {[%emt 0:00:50]} 27. Rc2 {[%emt 0:02:16]} dxc3 {[%emt 0:05:20]} 28. Bxc3 {[%emt 0:00:29]} b4 {[%emt 0:00:12]} 29. axb4 {[%emt 0:02:11]} Bxb4 {[%emt 0:00:24]} 30. Ra1 {[%emt 0:00:42]} Bxc3 {[%emt 0:00:49]} 31. bxc3 {[%emt 0:00:12]} Ra8 {[%emt 0:06:13]} 32. Rca2 {[%emt 0:00:05]} Qc6 {[%emt 0:03:16]} 33. Qc2 {[%emt 0:01:15]} Rd7 {[%emt 0:01:01]} 34. Bf1 {[%emt 0:00:28]} Rad8 {[%emt 0:00:27]} 35. Qxa4 {[%emt 0:06:21]} Qxc3 {[%emt 0:01:24]} 36. Rc2 {[%emt 0:00:10]} Qd4 {[%emt 0:00:23]} 37. Qxd4 {[%emt 0:01:51]} exd4 {[%emt 0:00:17]} 38. Bd3 {[%emt 0:00:14]} f6 {[%emt 0:01:11]} 39. Ra7 {[%emt 0:00:36]} Nf7 {[%emt 0:00:26]} 40. f4 {[%emt 0:00:39]} Rc8 {[%emt 0:00:48]} 41. Rc5 {[%emt 0:00:55]} Re7 {[%emt 0:02:56]} 42. Kf2 {[%emt 0:00:45]} Kf8 {[%emt 0:00:39]} 43. Kf3 {[%emt 0:00:23]} c6 {[%emt 0:00:38]} 44. Ra6 {[%emt 0:01:08]} Nd8 {[%emt 0:01:09]} 45. e5 {[%emt 0:04:50]} fxe5 {[%emt 0:03:42]} 46. fxe5 {[%emt 0:00:50]} Nb7 {[%emt 0:08:57]} 47. Raxc6 {[%emt 0:00:46]} Rxc6 {[%emt 0:00:07]} 48. Rxc6 {[%emt 0:00:02]} Rxe5 {[%emt 0:00:17]} 49. Kf4 {[%emt 0:03:44]} Re8 {[%emt 0:08:07]} 50. f6 {[%emt 0:01:29]} g5+ {[%emt 0:01:21]} 51. Kf5 {[%emt 0:00:09]} Nd8 {[%emt 0:01:25]} 52. Rd6 {[%emt 0:00:21]} Nf7 {[%emt 0:00:24]} 53. Rxd4 {[%emt 0:00:16]} Re5+ {[%emt 0:01:43]} 54. Kg6 {[%emt 0:00:54]} g4 {[%emt 0:02:07]} 55. h4 {[%emt 0:00:25]} Ra5 {[%emt 0:02:20]} 56. Bb1 {[%emt 0:02:42]} Kg8 {[%emt 0:01:05]} 57. Bf5 {[%emt 0:04:59]} Nh8+ {[%emt 0:00:58]} 58. Kxh6 {[%emt 0:00:19]} Rxf5 {[%emt 0:00:29]} 59. Rd8+ {[%emt 0:00:39]} Kf7 {[%emt 0:00:08]} 60. Rxh8 {[%emt 0:00:27]} Rxf6+ {[%emt 0:00:34]} 61. Kh5 {[%emt 0:00:51]} g3 {[%emt 0:00:57]} 62. Rh7+ {[%emt 0:01:27]} Kg8 {[%emt 0:00:20]} 63. Rh6 {[%emt 0:00:08]} Rf4 {[%emt 0:00:46]} 64. Rg6+ {[%emt 0:00:17]} Kh7 {[%emt 0:00:11]} 65. Rxg3 {[%emt 0:00:15]} Ra4 {[%emt 0:00:08]} 66. Rg5 {[%emt 0:00:24]} Ra6 {[%emt 0:00:37]} 67. g3 {[%emt 0:00:47]} Rb6 {[%emt 0:00:17]} 68. Ra5 {[%emt 0:00:13]} Rh6+ {[%emt 0:00:08]} 69. Kg5 {[%emt 0:00:12]} Rg6+ {[%emt 0:00:07]} 70. Kf4 {[%emt 0:00:06]} Rf6+ {[%emt 0:00:16]} 71. Rf5 {[%emt 0:00:05]} Ra6 {[%emt 0:00:14]} 72. g4 {[%emt 0:00:07]} Kg6 {[%emt 0:00:50]} 73. h5+ {[%emt 0:00:20]} Kh6 {[%emt 0:00:31]} 74. Rb5 {[%emt 0:00:27]} Rf6+ {[%emt 0:00:23]} 75. Kg3 {[%emt 0:00:08]} Ra6 {[%emt 0:02:11]} 76. Kh4 {[%emt 0:00:16]} Ra4 {[%emt 0:00:26]} 77. Rb6+ {[%emt 0:00:10]} Kg7 {[%emt 0:00:24]} 78. h6+ {[%emt 0:00:07]} Kh7 {[%emt 0:00:15]} 79. Kh5 {[%emt 0:00:08]} Ra1 {[%emt 0:00:10]} 80. Rb7+ {[%emt 0:00:13]} Kh8 {[%emt 0:00:42]} 81. g5 {[%emt 0:02:07]} Ra5 {[%emt 0:00:38]} 82. Rf7 {[%emt 0:04:29]} Kg8 {[%emt 0:00:55]} 83. Rf6 {[%emt 0:01:09]} Kh7 {[%emt 0:00:17]} 84. Kg4 {[%emt 0:00:14]} Ra4+ {[%emt 0:00:16]} 85. Rf4 {[%emt 0:00:25]} Ra1 {[%emt 0:00:35]} 86. Rf7+ {[%emt 0:01:38]} Kh8 {[%emt 0:00:32]} 87. Re7 {[%emt 0:02:28]} Ra5 {[%emt 0:00:56]} 88. g6 {[%emt 0:00:42]} Ra4+ {[%emt 0:00:04]} 89. Kf5 {[%emt 0:00:40]} Ra5+ {[%emt 0:00:18]} 90. Kf6 {[%emt 0:00:03]} Ra8 {[%emt 0:00:38]} 91. Rd7 {[%emt 0:00:55]} Rf8+ {[%emt 0:01:01]} 92. Ke7 {[%emt 0:00:09]} Kg8 {[%emt 0:00:32]} 93. Rd8 {[%emt 0:00:06]} Rxd8 {[%emt 0:00:05]} 94. Kxd8 {[%emt 0:00:09]} Kf8 {[%emt 0:00:15]} 95. Kd7 {[%emt 0:00:05]} Kg8 {[%emt 0:00:03]} 96. Ke7 {[%emt 0:00:12]} Kh8 {[%emt 0:00:04]} 97. g7+ {[%emt 0:00:11]} Kg8 {[%emt 0:00:09]} 98. Kf6 {[%emt 0:00:06]} Kh7 {[%emt 0:00:05]} 99. Kf7 {[%emt 0:00:04]} Kxh6 {[%emt 0:00:05]} 100. g8=Q {[%emt 0:00:06]} Kh5 {[%emt 0:00:02]} 101. Kf6 {[%emt 0:00:10]} Kh4 {[%emt 0:00:05]} 102. Kf5 {[%emt 0:00:06]} Kh3 {[%emt 0:00:05]} 103. Kf4 {[%emt 0:00:05]} Kh2 {[%emt 0:00:05]} 104. Kf3 {[%emt 0:00:04]} Kh1 {[%emt 0:00:06]} 105. Qg2# 1-0